bitfinex-derivatives/quotes_SOLF0:USTF0_20240918
["timestamp","ask_amount","ask_price","bid_price","bid_amount"]
[1726666223391,14.78,129.83,129.8,1.8697963]
[1726666223589,14.78,129.81,129.8,1.8697963]
[1726666224400,18.6312,129.81,129.8,1.8697963]
[1726666227614,3.8515,129.8,129.79,2.22960413]
[1726666228299,18.6312,129.81,129.79,2.22960413]
[1726666228699,14.78,129.82,129.79,2.22960413]
[1726666229701,18.631,129.82,129.79,6.08120413]
[1726666230404,14.78,129.81,129.79,2.22960413]
[1726666230606,4.3191,129.85,129.79,2.22960413]
[1726666230809,14.78,129.82,129.79,2.22960413]
[1726666231307,18.6309,129.82,129.79,6.08120413]
[1726666231504,14.78,129.82,129.79,2.22960413]
[1726666232008,14.78,129.82,129.8,3.8513]
[1726666232606,3.8507,129.83,129.8,3.8513]
[1726666233505,14.78,129.84,129.81,3.8511]
[1726666234109,18.6304,129.84,129.81,3.8511]
[1726666236211,14.78,129.82,129.79,2.22960413]
[1726666237010,3.8512,129.81,129.79,2.22960413]
[1726666237399,14.78,129.8,129.79,2.22960413]
[1726666237707,18.6315,129.8,129.79,2.22960413]
[1726666238114,14.78,129.8,129.79,2.22960413]
[1726666238806,18.631,129.82,129.79,6.08130413]
[1726666239011,14.78,129.82,129.79,2.22960413]
[1726666239908,3.8512,129.81,129.79,2.22960413]
[1726666240306,14.78,129.82,129.79,2.22960413]
[1726666240307,3.8515,129.8,129.79,2.22960413]
[1726666240702,14.78,129.82,129.79,2.22960413]
[1726666241001,3.8512,129.81,129.79,2.22960413]
[1726666243516,18.6315,129.8,129.79,2.22960413]
[1726666245309,14.78,129.8,129.79,2.22960413]
[1726666245916,18.6315,129.8,129.79,2.22960413]
[1726666249214,14.78,129.8,129.79,2.22960413]
[1726666249619,18.631,129.82,129.79,6.08130413]
[1726666250012,14.78,129.84,129.79,2.22960413]
[1726666250212,16.1952,129.88,129.79,17.00960413]
[1726666250613,16.1952,129.88,129.79,21.48300413]
[1726666250810,3.8496,129.87,129.83,3.8506]
[1726666251025,16.1952,129.88,129.79,21.48300413]
[1726666251228,17.6733,129.89,129.81,14.78]
[1726666251415,17.6733,129.89,129.81,18.60326044]
[1726666251613,17.6733,129.89,129.81,14.78]
[1726666251914,16.2,129.89,129.81,14.78]
[1726666252120,20.0488,129.89,129.85,3.8498]
[1726666253221,18.6291,129.88,129.84,3.8501]
[1726666253931,14.78,129.88,129.85,3.8499]
[1726666256630,18.6291,129.88,129.84,3.8501]
[1726666257621,3.8494,129.87,129.84,3.8501]
[1726666257823,14.78,129.88,129.8,14.78]
[1726666258223,14.78,129.88,129.83,3.8504]
[1726666258224,3.8494,129.87,129.83,3.8504]
[1726666258424,3.8494,129.87,129.8,14.78]
[1726666258826,3.8494,129.87,129.84,3.8503]
[1726666260224,3.8494,129.87,129.83,3.8505]
[1726666260430,14.78,129.85,129.79,6.70300413]
[1726666260835,22.52162559,129.85,129.81,3.8509]
[1726666261327,22.52162559,129.85,129.79,2.22960413]
[1726666261328,14.78,129.83,129.79,2.22960413]
[1726666261525,14.78,129.83,129.8,3.8513]
[1726666261935,14.78,129.83,129.79,2.22960413]
[1726666262437,14.78,129.81,129.79,2.22960413]
[1726666262732,14.78,129.8,129.79,2.22960413]
[1726666263129,18.6315,129.8,129.79,2.22960413]
[1726666264034,14.78,129.8,129.79,2.22960413]
[1726666264833,18.6309,129.82,129.79,2.22960413]
[1726666265632,3.8512,129.81,129.79,2.22960413]
[1726666268129,18.6315,129.8,129.79,2.22960413]
[1726666269034,14.78,129.8,129.79,2.22960413]
[1726666270526,18.6315,129.8,129.79,2.22960413]
[1726666275045,3.8513,129.81,129.79,2.22960413]
[1726666275242,14.78,129.81,129.79,2.22960413]
[1726666276932,3.8515,129.8,129.79,2.22960413]
[1726666277335,18.6315,129.8,129.79,2.22960413]
[1726666279644,14.78,129.8,129.79,2.22960413]
[1726666280545,18.6315,129.8,129.79,2.22960413]
[1726666280847,18.6315,129.8,129.77,3.14123348]
[1726666280848,14.78,129.8,129.77,3.14123348]
[1726666281038,14.78,129.78,129.77,3.14123348]
[1726666281238,18.6324,129.78,129.77,3.14123348]
[1726666281742,3.853,129.76,129.75,8.03741412]
[1726666282043,18.633,129.76,129.73,5.68581863]
[1726666283647,3.8533,129.75,129.73,5.68581863]
[1726666283949,14.78,129.74,129.73,5.68581863]
[1726666284138,18.6336,129.74,129.73,5.68581863]
[1726666285336,3.8539,129.73,129.72,1.26873861]
[1726666285543,14.78,129.74,129.72,1.26873861]
[1726666286151,18.6338,129.74,129.72,1.26873861]
[1726666286342,14.78,129.74,129.72,1.26873861]
[1726666286751,18.6338,129.74,129.72,1.26873861]
[1726666287245,14.78,129.74,129.72,1.26873861]
[1726666287751,14.78,129.75,129.72,1.26873861]
[1726666287952,14.78,129.75,129.72,5.12283861]
[1726666288755,14.78,129.75,129.73,3.8538]
[1726666290051,18.6328,129.77,129.73,3.8538]
[1726666291249,14.78,129.77,129.74,3.8535]
[1726666291452,14.78,129.77,129.72,1.26873861]
[1726666291857,14.78,129.77,129.75,3.8533]
[1726666292046,14.78,129.77,129.72,1.26873861]
[1726666292554,14.78,129.77,129.74,3.8535]
[1726666292755,18.6328,129.77,129.74,3.8535]
[1726666293060,18.6328,129.77,129.73,3.8538]
[1726666294553,18.6328,129.77,129.74,3.8535]
[1726666294961,14.78,129.77,129.72,1.26873861]
[1726666295167,14.78,129.78,129.72,1.26873861]
[1726666295572,18.6325,129.78,129.72,1.26873861]
[1726666296274,18.6325,129.78,129.74,3.8534]
[1726666296974,18.6329,129.77,129.74,3.8534]
[1726666297174,18.6329,129.77,129.73,3.8538]
[1726666297476,14.78,129.75,129.72,1.26873861]
[1726666297863,4.429,129.82,129.72,1.26873861]
[1726666298179,9.49,129.73,129.72,1.26873861]
[1726666298672,9.49,129.73,129.72,5.12293861]
[1726666300071,22.45755177,129.75,129.72,5.12293861]
[1726666300467,14.82,129.75,129.73,3.8539]
[1726666300670,14.82,129.77,129.73,3.8539]
[1726666300869,18.66924083,129.77,129.73,3.8539]
[1726666301074,22.52224083,129.77,129.73,3.8539]
[1726666301386,18.66924083,129.77,129.73,3.8539]
[1726666301681,22.52214083,129.77,129.73,3.8539]
[1726666301878,14.82,129.77,129.74,3.8536]
[1726666302474,14.82,129.77,129.73,3.8538]
[1726666302981,18.6729,129.77,129.73,3.8538]
[1726666303384,14.82,129.77,129.74,3.8535]
[1726666303591,14.82,129.77,129.72,1.26873861]
[1726666304073,18.6727,129.77,129.74,3.8534]
[1726666305683,14.82,129.77,129.74,3.8534]
[1726666306083,18.6729,129.77,129.74,3.8534]
[1726666306379,14.82,129.75,129.72,1.26873861]
[1726666306584,14.82,129.73,129.72,1.26873861]
[1726666307980,18.6739,129.73,129.71,3.94277535]
[1726666308192,14.82,129.73,129.68,5.11068843]
[1726666308383,14.82,129.69,129.68,5.11068843]
[1726666308582,14.82,129.7,129.68,5.11068843]
[1726666309886,14.82,129.7,129.68,8.96608843]
[1726666310476,14.82,129.69,129.68,5.11068843]
[1726666310981,18.6751,129.69,129.68,5.11068843]
[1726666311183,18.6751,129.69,129.64,3.32978094]
[1726666311383,14.82,129.69,129.64,3.32978094]
[1726666311586,14.82,129.69,129.66,3.8558]
[1726666313987,18.6752,129.69,129.65,9.14414873]
[1726666314186,18.6752,129.69,129.65,5.28794873]
[1726666314386,14.82,129.69,129.65,5.28794873]
[1726666314790,14.82,129.66,129.65,5.28794873]
[1726666315094,14.82,129.66,129.63,2.75017775]
[1726666315095,18.66416633,129.66,129.63,2.75017775]
[1726666315279,14.82,129.64,129.62,3.54112413]
[1726666315484,3.8569,129.63,129.61,5.81427959]
[1726666315687,14.82,129.61,129.59,2.30338864]
[1726666316193,14.82,129.61,129.58,3.32147659]
[1726666316194,29.64,129.61,129.58,3.32147659]
[1726666316387,14.82,129.59,129.57,5.07722208]
[1726666316582,18.76835473,129.59,129.57,5.07722208]
[1726666317191,22.62665473,129.59,129.57,5.07722208]
[1726666317391,18.76835473,129.59,129.55,3.56558038]
[1726666317594,14.82,129.57,129.55,3.56558038]
[1726666317987,14.82,129.57,129.54,2.80815295]
[1726666318191,14.82,129.55,129.54,2.80815295]
[1726666319296,14.82,129.55,129.51,4.9509442]
[1726666319597,18.6795,129.55,129.51,4.9509442]
[1726666319795,14.82,129.52,129.51,4.9509442]
[1726666320393,14.82,129.52,129.48,5.94886257]
[1726666320592,3.94853897,129.57,129.48,5.94886257]
[1726666320593,14.82,129.51,129.48,5.94886257]
[1726666321098,14.82,129.51,129.48,9.80996257]
[1726666321497,14.82,129.49,129.47,5.657752]
[1726666321797,14.82,129.48,129.47,5.657752]
[1726666322002,14.82,129.51,129.47,5.657752]
[1726666322300,14.82,129.49,129.47,5.657752]
[1726666322499,14.82,129.48,129.47,5.657752]
[1726666323799,14.82,129.48,129.45,5.34123023]
[1726666324004,14.82,129.46,129.45,5.34123023]
[1726666325102,14.82,129.48,129.45,5.34123023]
[1726666325397,18.6815,129.48,129.45,5.34123023]
[1726666326887,14.82,129.48,129.45,5.34123023]
[1726666327297,18.6816,129.48,129.45,5.34123023]
[1726666327600,14.82,129.48,129.45,5.34123023]
[1726666328598,156.0273,129.53,129.45,5.34123023]
[1726666328798,13.83095486,129.97,129.45,5.34123023]
[1726666328799,154.54,129.61,129.45,23.08363023]
[1726666328991,14.82,129.53,129.45,24.59823023]
[1726666329302,14.82,129.55,129.47,14.82]
[1726666329803,14.82,129.55,129.53,3.8598]
[1726666330393,14.82,129.55,129.47,14.82]
[1726666330990,14.82,129.55,129.52,3.86]
[1726666331593,4.3602,129.6,129.47,14.82]
[1726666331803,4.3602,129.6,129.48,14.82]
[1726666331804,14.82,129.57,129.48,14.82]
[1726666332497,14.82,129.55,129.47,14.82]
[1726666332694,14.82,129.54,129.51,3.8603]
[1726666332891,14.82,129.54,129.45,9.77823023]
[1726666333094,14.82,129.52,129.49,3.8609]
[1726666333500,14.82,129.52,129.45,9.77823023]
[1726666333703,14.82,129.52,129.5,3.8605]
[1726666334106,14.82,129.52,129.45,9.77823023]
[1726666334403,18.6802,129.52,129.49,3.8609]
[1726666334594,14.82,129.52,129.45,9.77823023]
[1726666334990,14.82,129.54,129.46,14.82]
[1726666335193,14.82,129.55,129.48,14.82]
[1726666335398,14.82,129.57,129.48,14.82]
[1726666335594,14.82,129.55,129.48,14.82]
[1726666336907,14.82,129.57,129.48,14.82]
[1726666337302,18.6788,129.57,129.54,3.8593]
[1726666337508,14.82,129.57,129.49,14.82]
[1726666337703,14.82,129.58,129.51,14.82]
[1726666338008,14.82,129.6,129.52,4.5369]
[1726666338410,18.6778,129.6,129.52,4.5369]
[1726666339013,14.82,129.6,129.58,3.8581]
[1726666339402,14.82,129.6,129.52,19.3569]
[1726666340110,14.82,129.6,129.52,4.5369]
[1726666340512,18.6778,129.6,129.56,3.8588]
[1726666342805,14.82,129.6,129.52,4.5369]
[1726666343017,14.82,129.62,129.53,14.82]
[1726666343207,14.82,129.62,129.59,3.8581]
[1726666343514,14.82,129.62,129.53,14.82]
[1726666343815,14.82,129.62,129.54,14.82]
[1726666344013,16.269,129.65,129.56,14.82]
[1726666344211,14.82,129.65,129.56,14.82]
[1726666345810,14.82,129.63,129.54,14.82]
[1726666346015,23.73,129.64,129.53,23.73]
[1726666346516,27.5867,129.64,129.53,23.73]
[1726666346722,23.73,129.64,129.53,23.73]
[1726666347021,154.52,129.69,129.55,23.73]
[1726666347215,23.73,129.68,129.57,23.73]
[1726666347418,23.73,129.68,129.58,2.9753]
[1726666347803,23.73,129.68,129.59,1.4396]
[1726666348503,23.73,129.68,129.65,3.8561]
[1726666348707,23.73,129.68,129.59,1.4396]
[1726666350820,23.73,129.68,129.64,3.8565]
[1726666351814,23.73,129.68,129.65,3.8563]
[1726666352021,23.73,129.68,129.59,1.4396]
[1726666352410,23.73,129.68,129.64,3.8565]
[1726666354213,23.73,129.7,129.59,25.1696]
[1726666355018,23.73,129.68,129.59,1.4396]
[1726666355416,23.73,129.68,129.64,3.8566]
[1726666355716,23.73,129.68,129.59,1.4396]
[1726666355920,23.73,129.68,129.63,3.8567]
[1726666356120,3.8558,129.67,129.59,1.4396]
[1726666356318,3.8558,129.67,129.63,3.8567]
[1726666356522,3.8558,129.67,129.59,1.4396]
[1726666357114,3.8558,129.67,129.63,3.8567]
[1726666357418,3.8558,129.67,129.59,1.4396]
[1726666357619,3.8558,129.67,129.64,3.8565]
[1726666358123,3.856,129.66,129.63,3.8568]
[1726666358322,23.73,129.66,129.59,1.4396]
[1726666359517,23.73,129.66,129.58,2.9753]
[1726666359823,3.8571,129.63,129.6,3.8576]
[1726666360122,23.73,129.64,129.58,2.9753]
[1726666360417,23.73,129.64,129.58,1.442]
[1726666360418,27.52768969,129.64,129.58,1.442]
[1726666360619,23.73,129.62,129.54,2.9195]
[1726666360925,27.5874,129.62,129.59,3.8579]
[1726666362524,23.73,129.64,129.54,2.9195]
[1726666362920,3.8564,129.65,129.62,3.857]
[1726666363115,23.73,129.66,129.62,3.857]
[1726666363625,3.8565,129.65,129.61,3.8573]
[1726666364021,23.73,129.66,129.55,23.73]
[1726666364427,23.73,129.64,129.6,3.8576]
[1726666364618,23.73,129.62,129.54,2.9195]
[1726666364818,23.73,129.62,129.58,3.8582]
[1726666365428,3.8575,129.61,129.58,3.8582]
[1726666365929,18.6875,129.61,129.58,3.8582]
[1726666367014,14.83,129.61,129.59,3.858]
[1726666367225,14.83,129.61,129.54,2.9195]
[1726666368131,14.83,129.61,129.57,3.8584]
[1726666368333,14.83,129.61,129.54,1.4334]
[1726666368536,18.6876,129.61,129.58,3.8582]
[1726666369724,14.83,129.63,129.54,16.2634]
[1726666370125,18.6872,129.63,129.59,3.8579]
[1726666370326,18.6872,129.63,129.54,16.2634]
[1726666370528,14.83,129.63,129.54,16.2634]
[1726666370729,3.8572,129.62,129.59,3.8579]
[1726666372732,3.8572,129.62,129.58,3.8582]
[1726666372931,18.6876,129.61,129.54,1.4334]
[1726666373126,18.6876,129.61,129.57,3.8584]
[1726666373521,18.6876,129.61,129.54,1.4334]
[1726666373522,14.83,129.61,129.51,3.89772902]
[1726666373726,5.38000152,129.64,129.46,154.44]
[1726666373727,14.83,129.58,129.5,14.83]
[1726666374031,3.8589,129.57,129.5,14.83]
[1726666374431,3.8589,129.57,129.54,3.8595]
[1726666374736,1.4001,129.59,129.51,14.83]
[1726666375130,5.2585,129.59,129.56,3.859]
[1726666375328,1.4001,129.59,129.56,3.859]
[1726666376034,5.2583,129.59,129.56,3.859]
[1726666378326,1.4001,129.59,129.51,14.83]
[1726666378830,17.772,129.6,129.53,14.83]
[1726666379432,21.6298,129.6,129.57,3.8585]
[1726666379633,17.772,129.6,129.53,14.83]
[1726666380129,14.83,129.6,129.53,14.83]
[1726666380327,18.6873,129.62,129.53,14.83]
[1726666380529,3.8575,129.61,129.58,3.8582]
[1726666380828,3.8575,129.61,129.54,1.4128]
[1726666380829,14.83,129.62,129.54,1.4128]
[1726666381030,18.6873,129.62,129.59,3.8579]
[1726666381448,14.83,129.62,129.55,14.83]
[1726666381739,14.83,129.62,129.6,3.8576]
[1726666381930,1.473,129.63,129.55,14.83]
[1726666382630,14.83,129.64,129.55,14.83]
[1726666382834,18.6865,129.65,129.56,14.83]
[1726666383037,18.6865,129.65,129.58,14.83]
[1726666383233,18.6866,129.64,129.61,3.8573]
[1726666384029,14.83,129.64,129.56,14.83]
[1726666384726,14.83,129.65,129.56,14.83]
[1726666385331,14.83,129.65,129.62,3.857]
[1726666385936,18.6863,129.65,129.62,3.857]
[1726666388137,14.83,129.65,129.58,14.83]
[1726666388343,14.83,129.67,129.59,14.83]
[1726666388540,14.83,129.67,129.6,4.3626]
[1726666389839,18.6858,129.67,129.64,3.8564]
[1726666390443,14.83,129.67,129.65,3.8562]
[1726666390642,14.83,129.67,129.6,4.3626]
[1726666390845,14.83,129.69,129.6,4.3626]
[1726666391138,3.8554,129.68,129.65,3.8561]
[1726666393342,18.6852,129.69,129.65,3.8561]
[1726666393940,18.6852,129.69,129.66,3.8559]
[1726666394743,3.8557,129.68,129.6,4.3626]
[1726666394939,14.83,129.67,129.6,4.3626]
[1726666395150,14.83,129.66,129.6,4.3626]
[1726666395643,14.83,129.64,129.62,3.8571]
[1726666395836,14.83,129.64,129.56,19.2848]
[1726666396041,14.83,129.62,129.56,4.4548]
[1726666396640,14.83,129.59,129.53,154.42]
[1726666396844,14.83,129.59,129.52,1.3851]
[1726666397047,14.83,129.57,129.52,1.3851]
[1726666398042,14.83,129.57,129.54,3.8594]
[1726666398449,14.83,129.57,129.49,16.2151]
[1726666400447,20.183,129.59,129.51,14.83]
[1726666400652,16.3247,129.59,129.51,14.83]
[1726666400852,16.3247,129.59,129.56,3.8589]
[1726666401046,14.83,129.59,129.56,3.8589]
[1726666401348,14.83,129.59,129.51,14.83]
[1726666401549,14.83,129.59,129.57,3.8586]
[1726666401749,14.83,129.59,129.51,14.83]
[1726666402453,14.83,129.59,129.57,3.8586]
[1726666403055,18.6876,129.61,129.58,3.8584]
[1726666403246,14.83,129.62,129.58,3.8584]
[1726666403644,14.83,129.62,129.54,14.83]
[1726666403849,2.917,129.63,129.56,14.83]
[1726666404149,14.83,129.64,129.56,14.83]
[1726666404358,5.2606,129.65,129.58,14.83]
[1726666404750,5.2606,129.65,129.61,3.8572]
[1726666404943,1.4041,129.65,129.58,14.83]
[1726666405253,18.6861,129.66,129.58,14.83]
[1726666405454,3.8564,129.65,129.58,14.83]
[1726666406247,3.8566,129.64,129.58,14.83]
[1726666406448,14.83,129.66,129.58,14.83]
[1726666407248,18.6861,129.66,129.62,3.857]
[1726666407952,3.8563,129.65,129.58,14.83]
[1726666408155,14.83,129.64,129.61,3.8574]
[1726666408658,3.8569,129.63,129.6,3.8577]
[1726666409059,18.6867,129.64,129.6,3.8577]
[1726666409554,14.83,129.64,129.61,3.8575]
[1726666409865,14.83,129.64,129.61,3.8572]
[1726666410154,14.83,129.64,129.57,4.4131]
[1726666410457,14.83,129.64,129.62,3.8572]
[1726666411048,18.6861,129.66,129.63,3.8569]
[1726666412254,18.6858,129.67,129.59,14.83]
[1726666412560,14.83,129.67,129.59,14.83]
[1726666412756,18.6858,129.67,129.63,3.8566]
[1726666412961,18.6858,129.67,129.59,14.83]
[1726666413160,3.8562,129.66,129.62,3.857]
[1726666413358,18.6862,129.66,129.62,3.857]
[1726666413562,18.6862,129.66,129.59,14.83]
[1726666413955,18.6862,129.66,129.63,3.8569]
[1726666414448,14.83,129.66,129.57,19.2431]
[1726666415158,3.8565,129.65,129.62,3.8571]
[1726666415557,18.6861,129.66,129.63,3.8568]
[1726666415760,18.6861,129.66,129.57,19.2431]
[1726666416162,18.6861,129.66,129.63,3.8567]
[1726666416666,4.4754,129.68,129.57,4.4131]
[1726666416667,18.6858,129.67,129.64,3.8565]
[1726666418864,14.83,129.67,129.61,14.83]
[1726666419070,4.4754,129.68,129.61,14.83]
[1726666419558,8.331,129.68,129.65,3.8563]
[1726666419758,4.4754,129.68,129.61,14.83]
[1726666420063,3.8557,129.67,129.64,3.8564]
[1726666420452,19.06302231,129.68,129.61,14.83]
[1726666420657,17.61232231,129.68,129.61,14.83]
[1726666420857,3.0247,129.68,129.61,14.83]
[1726666421057,14.83,129.69,129.62,14.83]
[1726666421561,14.83,129.67,129.59,14.83]
[1726666422269,18.6859,129.67,129.65,3.8563]
[1726666422759,18.6859,129.67,129.64,3.8565]
[1726666423970,18.6855,129.68,129.65,3.8563]
[1726666427158,7.73538219,129.69,129.66,3.856]
[1726666427360,14.83,129.7,129.61,14.83]
[1726666427559,14.83,129.68,129.61,14.83]
[1726666427760,3.8557,129.67,129.64,3.8564]
[1726666428360,18.686,129.66,129.59,14.83]
[1726666428556,14.83,129.66,129.57,19.2431]
[1726666429173,3.8565,129.65,129.62,3.857]
[1726666429369,14.83,129.66,129.59,14.83]
[1726666429576,14.83,129.66,129.64,3.8565]
[1726666430672,18.686,129.66,129.63,3.8568]
[1726666430872,14.83,129.66,129.59,14.83]
[1726666432073,14.83,129.65,129.57,19.2431]
[1726666432463,3.8568,129.64,129.57,19.2431]
[1726666433073,3.8568,129.64,129.61,3.8573]
[1726666434270,3.8564,129.65,129.62,3.857]
[1726666435173,3.8566,129.64,129.61,3.8573]
[1726666435771,3.8564,129.65,129.62,3.8571]
[1726666438071,9.49,129.65,129.63,3.8569]
[1726666439467,13.3463,129.65,129.63,3.8569]
[1726666440775,13.3463,129.65,129.62,3.857]
[1726666443577,14.59404094,129.66,129.52,7.7199]
[1726666443875,9.49,129.59,129.54,9.49]
[1726666444067,9.49,129.57,129.53,12.436]
[1726666444478,9.49,129.57,129.55,3.859]
[1726666444781,9.49,129.58,129.54,9.49]
[1726666445280,2.9206,129.62,129.56,9.49]
[1726666445682,9.49,129.6,129.55,9.49]
[1726666445883,9.49,129.6,129.53,2.946]
[1726666446079,3.8584,129.58,129.55,3.8591]
[1726666446274,14.83,129.61,129.53,17.776]
[1726666446467,2.9206,129.62,129.53,17.776]
[1726666446468,14.83,129.59,129.53,2.946]
[1726666446673,2.9206,129.62,129.53,14.83]
[1726666446869,14.83,129.61,129.53,14.83]
[1726666447073,18.75213806,129.61,129.53,14.83]
[1726666448283,16.2646,129.65,129.56,14.83]
[1726666449074,16.2646,129.65,129.57,1.4802]
[1726666449376,5.2911,129.65,129.58,14.83]
[1726666449580,14.59089663,129.65,129.58,14.83]
[1726666449773,14.59089663,129.65,129.6,14.83]
[1726666449975,14.59227476,129.67,129.6,14.83]
[1726666450180,18.44797476,129.67,129.63,3.8567]
[1726666450777,18.6856,129.68,129.64,3.8564]
[1726666450977,14.83,129.68,129.64,3.8564]
[1726666451180,18.76297602,129.68,129.6,14.83]
[1726666451376,18.76297602,129.68,129.58,14.83]
[1726666451377,14.58772293,129.67,129.58,14.83]
[1726666451578,14.83,129.66,129.57,16.3102]
[1726666451975,3.8566,129.65,129.6,3.8576]
[1726666452172,14.83,129.64,129.57,1.4802]
[1726666452384,14.83,129.63,129.57,1.4802]
[1726666453175,3.8576,129.61,129.57,3.8586]
[1726666453377,18.6876,129.61,129.57,3.8586]
[1726666453587,3.8581,129.59,129.55,5.2613]
[1726666453894,3.8581,129.59,129.55,3.859]
[1726666454184,3.78899722,129.61,129.54,3.8595]
[1726666454185,18.6884,129.58,129.54,3.8595]
[1726666454385,14.83,129.58,129.5,14.83]
[1726666454786,20.1002,129.6,129.56,3.8589]
[1726666456086,3.8581,129.59,129.55,3.8592]
[1726666456393,14.83,129.58,129.49,17.8339]
[1726666456591,1.4122,129.6,129.49,17.8339]
[1726666456592,14.83,129.56,129.49,3.0039]
[1726666457280,14.83,129.56,129.53,3.8598]
[1726666458479,18.689,129.56,129.52,3.86]
[1726666458690,14.83,129.56,129.52,3.86]
[1726666459078,18.6891,129.56,129.52,3.86]
[1726666459484,14.83,129.56,129.53,3.8598]
[1726666459679,14.83,129.56,129.49,3.0039]
[1726666459879,14.83,129.56,129.52,3.86]
[1726666460083,18.6892,129.56,129.52,3.86]
[1726666460581,14.83,129.56,129.53,3.8598]
[1726666460981,2.8687,129.59,129.52,14.83]
[1726666461188,2.8687,129.59,129.56,3.8589]
[1726666461391,20.1002,129.6,129.56,3.8589]
[1726666461900,3.8581,129.59,129.55,3.8592]
[1726666462393,18.6884,129.58,129.55,3.8592]
[1726666462591,18.6884,129.58,129.54,3.8596]
[1726666462887,14.83,129.58,129.54,3.8596]
[1726666463087,14.83,129.58,129.5,14.83]
[1726666463783,3.0427,129.59,129.49,17.8339]
[1726666463784,14.83,129.57,129.49,17.8339]
[1726666464290,14.83,129.57,129.53,3.8596]
[1726666464291,18.6888,129.57,129.53,3.8596]
[1726666464795,18.6884,129.58,129.51,14.83]
[1726666465184,18.6884,129.58,129.54,3.8594]
[1726666465385,3.8588,129.57,129.51,14.83]
[1726666465793,3.8588,129.57,129.53,3.8596]
[1726666466695,3.859,129.56,129.52,3.8601]
[1726666466996,3.859,129.56,129.49,17.8339]
[1726666467198,3.8593,129.55,129.52,3.86]
[1726666467991,3.8596,129.54,129.49,3.0039]
[1726666468290,14.83,129.54,129.48,1.4576]
[1726666468497,14.83,129.51,129.45,8.30533023]
[1726666469192,3.8608,129.5,129.47,3.8615]
[1726666469593,18.6906,129.51,129.47,3.8615]
[1726666469792,14.83,129.51,129.48,3.8612]
[1726666470596,14.83,129.51,129.49,3.8609]
[1726666471198,14.83,129.51,129.45,8.30533023]
[1726666471394,14.83,129.51,129.49,3.861]
[1726666472397,20.0976,129.53,129.49,3.861]
[1726666472698,16.2376,129.53,129.45,23.13533023]
[1726666472889,14.83,129.53,129.45,23.13533023]
[1726666473090,14.83,129.55,129.45,23.13533023]
[1726666473291,14.83,129.55,129.51,3.8603]
[1726666474391,3.86,129.53,129.47,14.83]
[1726666474695,18.69,129.53,129.45,23.13533023]
[1726666474999,3.8611951,129.54,129.45,8.30533023]
[1726666475000,3.8606,129.51,129.45,8.30533023]
[1726666475191,14.83,129.51,129.45,8.30533023]
[1726666475497,14.83,129.51,129.48,3.8612]
[1726666475700,14.83,129.51,129.45,8.30533023]
[1726666475897,18.69,129.53,129.5,3.8607]
[1726666476193,14.83,129.53,129.5,3.8607]
[1726666476393,14.83,129.55,129.46,14.83]
[1726666476790,3.8598,129.54,129.51,3.8604]
[1726666476990,14.83,129.55,129.51,3.8604]